fUSD/lending_fUSD_20240907
["ID","MTS","AMOUNT","RATE_DAILY","PERIOD"]
[337474723,1725681032120,-160.1,0.00012893,2]
[337474724,1725681032130,-6682.29,0.00012893,2]
[337474725,1725681032140,-244.54042143,0.00012893,2]
[337474726,1725681032156,-1371.49039911,0.00012893,2]
[337474735,1725681037794,-1768.43667,0.00012893,2]
[337474737,1725681037807,-3146.7938,0.00012893,2]
[337474738,1725681037821,-1938.18870946,0.00012893,2]
[337474739,1725681037832,-1253.72325385,0.000129,2]
[337474740,1725681038022,-884.28010879,0.000129,2]
[337474741,1725681038034,-20898.32190302,0.000129,2]
[337474742,1725681038180,-2512.92158171,0.000129,2]
[337474743,1725681038195,-9738.35158206,0.000129,2]
[337474744,1725681038206,-775.61553959,0.000129,2]
[337474779,1725681040114,-306.44004609,0.000129,2]
[337474780,1725681040177,-1083.32602541,0.000129,2]
[337474781,1725681040359,-4592.72827989,0.000129,2]
[337474782,1725681040371,-312.91,0.000129,2]
[337474783,1725681040383,-219.81173405,0.000129,2]
[337474784,1725681040392,-327.5646787,0.00012999,2]
[337474785,1725681040402,-500.0,0.00012999,2]
[337474786,1725681040412,-500.0,0.00012999,2]
[337474787,1725681040422,-355.37245329,0.00012999,2]
[337474788,1725681040432,-308890.98203354,0.00013,2]
[337474789,1725681040441,-28795.176,0.00013,2]
[337474790,1725681040451,-200.0,0.00013,2]
[337474791,1725681040464,-500.0,0.00013014,2]
[337474792,1725681040475,-42578.43005437,0.00013122,2]
[337474794,1725681040484,-42578.43005437,0.00013344,2]
[337474796,1725681040494,-740.03,0.0001337,2]
[337474797,1725681040504,-368.32,0.0001337,2]
[337474798,1725681040514,-714.74,0.0001337,2]
[337474799,1725681040525,-272.96,0.00013416,2]
[337474800,1725681040535,-349.59388545,0.00013471,2]
[337474801,1725681040545,-150.72,0.00013557,2]
[337474802,1725681040554,-42578.43005437,0.00013567,2]
[337474803,1725681040565,-167.12,0.00013699,2]
[337474804,1725681040577,-174.33,0.00013699,2]
[337474805,1725681040587,-289.14,0.00013699,2]
[337474806,1725681040597,-1000.0,0.00013741,2]
[337474807,1725681040606,-349.59388545,0.00013757,2]
[337474808,1725681040617,-42578.43005437,0.00013789,2]
[337474809,1725681040627,-7695.25873678,0.0001379,2]
[337474810,1725681040637,-173.0,0.00013973,2]
[337474811,1725681040649,-173.0,0.00014,2]
[337474812,1725681040659,-42578.43005437,0.00014011,2]
[337474813,1725681040668,-349.59388545,0.00014043,2]
[337474814,1725681040678,-420.0,0.00014115,2]
[337474815,1725681040688,-42578.43005437,0.00014233,2]
[337474816,1725681040697,-184.371249,0.00014247,2]
[337474817,1725681040707,-349.59388545,0.00014329,2]
[337474818,1725681040717,-173.0,0.00014384,2]
[337474819,1725681040727,-174.33,0.00014384,2]
[337474820,1725681040738,-42578.43005437,0.00014456,2]
[337474821,1725681040747,-158.8,0.00014568,2]
[337474822,1725681040757,-150.72,0.00014607,2]
[337474823,1725681040766,-349.59388545,0.00014614,2]
[337474824,1725681040777,-349.6002,0.00014617,2]
[337474825,1725681040787,-16910.6256,0.00014617,2]
[337474826,1725681040797,-5840.8279,0.00014617,2]
[337474827,1725681040806,-42578.43005437,0.00014678,2]
[337474828,1725681040815,-179.31534386,0.00014684,2]
[337474829,1725681040825,-237.85037377,0.00014694,2]
[337474830,1725681040834,-150.0,0.00014721,2]
[337474831,1725681040844,-525.93263008,0.00014725,2]
[337474832,1725681040853,-150.0,0.00014729,2]
[337474833,1725681040862,-150.0,0.0001473,2]
[337474834,1725681040872,-150.0,0.00014732,2]
[337474835,1725681040881,-150.0,0.00014733,2]
[337474836,1725681040891,-150.0,0.00014734,2]
[337474837,1725681040900,-179.31534386,0.00014738,2]
[337474838,1725681040909,-150.0,0.0001474,2]
[337474839,1725681040919,-150.0,0.0001474,2]
[337474840,1725681040928,-150.0,0.00014743,2]
[337474841,1725681040939,-150.0,0.00014743,2]
[337474842,1725681040950,-150.0,0.00014745,2]
[337474843,1725681040959,-150.0,0.00014747,2]
[337474844,1725681040969,-150.0,0.00014753,2]
[337474845,1725681040978,-150.0,0.00014753,2]
[337474846,1725681040988,-150.0,0.00014755,2]
[337474847,1725681040999,-150.0,0.00014756,2]
[337474848,1725681041008,-150.0,0.00014757,2]
[337474849,1725681041018,-150.0,0.00014757,2]
[337474850,1725681041028,-150.0,0.00014761,2]
[337474851,1725681041038,-1500.0,0.00014768,2]
[337474852,1725681041047,-150.0,0.00014768,2]
[337474853,1725681041057,-500.0,0.00014773,2]
[337474854,1725681041066,-500.0,0.00014773,2]
[337474855,1725681041076,-150.0,0.00014773,2]
[337474856,1725681041085,-1500.0,0.00014779,2]
[337474857,1725681041095,-150.0,0.00014779,2]
[337474858,1725681041104,-554.04,0.0001478,2]
[337474859,1725681041114,-150.72,0.0001478,2]
[337474860,1725681041124,-168585.07351,0.00014784,3]
[337474861,1725681041134,-150.0,0.00014786,2]
[337474862,1725681041144,-150.0,0.00014788,2]
[337474863,1725681041153,-307.66611387,0.0001479,2]
[337474864,1725681041164,-6020.8954825,0.0001479,3]
[337474865,1725681041174,-150.0,0.00014792,2]
[337474866,1725681041184,-179.31534386,0.00014792,2]
[337474867,1725681041195,-700.0,0.00014794,2]
[337474868,1725681041210,-500.0,0.00014794,2]
[337474869,1725681041219,-500.0,0.00014794,2]
[337474870,1725681041229,-500.0,0.00014794,2]
[337474871,1725681041239,-500.0,0.00014794,2]
[337474872,1725681041250,-500.0,0.00014794,2]
[337474873,1725681041259,-500.0,0.00014794,2]
[337474874,1725681041269,-500.0,0.00014794,2]
[337474875,1725681041279,-500.0,0.00014794,2]
[337474876,1725681041289,-500.0,0.00014794,2]
[337474877,1725681041299,-500.0,0.00014794,2]
[337474878,1725681041308,-500.0,0.00014794,2]
[337474879,1725681041318,-500.0,0.00014794,2]
[337474880,1725681041328,-500.0,0.00014794,2]
[337474881,1725681041338,-500.0,0.00014794,2]
[337474882,1725681041348,-500.0,0.00014794,2]
[337474883,1725681041357,-500.0,0.00014794,2]
[337474884,1725681041367,-500.0,0.00014794,2]
[337474885,1725681041376,-500.0,0.00014794,2]
[337474886,1725681041386,-500.0,0.00014794,2]
[337474887,1725681041396,-500.0,0.00014794,2]
[337474888,1725681041405,-500.0,0.00014794,2]
[337474889,1725681041415,-500.0,0.00014794,2]
[337474890,1725681041425,-500.0,0.00014794,2]
[337474891,1725681041434,-500.0,0.00014794,2]
[337474892,1725681041444,-500.0,0.00014794,2]
[337474893,1725681041459,-500.0,0.00014794,2]
[337474894,1725681041468,-300.40840206,0.00014794,2]
[337474895,1725681041478,-500.0,0.00014794,2]
[337474896,1725681041487,-500.0,0.00014794,2]
[337474897,1725681041497,-500.0,0.00014794,2]
[337474898,1725681041507,-500.0,0.00014794,2]
[337474899,1725681041517,-500.0,0.00014794,2]
[337474900,1725681041527,-500.0,0.00014794,2]
[337474901,1725681041537,-500.0,0.00014794,2]
[337474902,1725681041547,-500.0,0.00014794,2]
[337474903,1725681041556,-500.0,0.00014794,2]
[337474904,1725681041569,-620.99979946,0.00014794,2]
[337474905,1725681041579,-500.0,0.00014794,2]
[337474906,1725681041589,-500.0,0.00014794,2]
[337474907,1725681041599,-158.58336274,0.00014794,2]
[337474908,1725681041609,-500.0,0.00014794,2]
[337474909,1725681041618,-500.0,0.00014794,2]
[337474910,1725681041628,-500.0,0.00014794,2]
[337474911,1725681041640,-500.0,0.00014794,2]
[337474912,1725681041650,-500.0,0.00014794,2]
[337474913,1725681041660,-500.0,0.00014794,2]
[337474914,1725681041669,-500.0,0.00014794,2]
[337474915,1725681041679,-500.0,0.00014794,2]
[337474916,1725681041688,-500.0,0.00014794,2]
[337474917,1725681041698,-500.0,0.00014794,2]
[337474918,1725681041710,-500.0,0.00014794,2]
[337474919,1725681041719,-500.0,0.00014794,2]
[337474920,1725681041729,-500.0,0.00014794,2]
[337474921,1725681041740,-500.39727821,0.00014794,2]
[337474922,1725681041749,-500.0,0.00014794,2]
[337474923,1725681041759,-500.0,0.00014794,2]
[337474924,1725681041769,-500.0,0.00014794,2]
[337474925,1725681041778,-500.0,0.00014794,2]
[337474926,1725681041787,-500.0,0.00014794,2]
[337474927,1725681041797,-500.0,0.00014794,2]
[337474928,1725681041806,-500.0,0.00014794,2]
[337474929,1725681041816,-500.0,0.00014794,2]
[337474930,1725681041825,-500.0,0.00014794,2]
[337474931,1725681041834,-500.0,0.00014794,2]
[337474932,1725681041844,-500.0,0.00014794,2]
[337474933,1725681041853,-500.0,0.00014794,2]
[337474934,1725681041863,-378.0,0.00014794,2]
[337474935,1725681041872,-505.52143823,0.00014794,2]
[337474936,1725681041882,-507.79090837,0.00014794,2]
[337474937,1725681041891,-500.0,0.00014794,2]
[337474938,1725681041901,-500.0,0.00014794,2]
[337474939,1725681041911,-500.0,0.00014794,2]
[337474940,1725681041920,-500.0,0.00014794,2]
[337474941,1725681041929,-579.02674673,0.00014794,2]
[337474942,1725681041939,-500.0,0.00014794,2]
[337474943,1725681041948,-603.40715033,0.00014794,2]
[337474944,1725681041959,-500.53789824,0.00014794,2]
[337474945,1725681041969,-506.63681862,0.00014794,2]
[337474946,1725681041978,-500.0,0.00014794,2]
[337474947,1725681041987,-500.0,0.00014794,2]
[337474948,1725681041997,-500.0,0.00014794,2]
[337474949,1725681042007,-500.0,0.00014794,2]
[337474950,1725681042016,-500.0,0.00014794,2]
[337474951,1725681042025,-500.0,0.00014794,2]
[337474952,1725681042034,-187.48662423,0.00014794,2]
[337474953,1725681042044,-500.0,0.00014794,2]
[337474954,1725681042053,-500.0,0.00014794,2]
[337474955,1725681042062,-500.0,0.00014794,2]
[337474956,1725681042071,-500.0,0.00014794,2]
[337474957,1725681042081,-500.0,0.00014794,2]
[337474958,1725681042090,-500.0,0.00014794,2]
[337474959,1725681042099,-500.0,0.00014794,2]
[337474960,1725681042109,-500.0,0.00014794,2]
[337474961,1725681042118,-527.6438627,0.00014794,2]
[337474962,1725681042128,-520.06369658,0.00014794,2]
[337474963,1725681042138,-507.35240319,0.00014794,2]
[337474964,1725681042147,-504.24637345,0.00014794,2]
[337474965,1725681042195,-500.86520312,0.00014794,2]
[337474966,1725681042206,-502.61669147,0.00014794,2]
[337474967,1725681042219,-500.0,0.00014794,2]
[337474968,1725681042229,-501.93075284,0.00014794,2]
[337474969,1725681042238,-505.05,0.00014794,2]
[337474970,1725681042247,-501.47107017,0.00014794,2]
[337474971,1725681042257,-501.69266774,0.00014794,2]
[337474972,1725681042266,-501.20659376,0.00014794,2]
[337474973,1725681042275,-268.21543634,0.00014794,2]
[337474974,1725681042285,-500.96847159,0.00014794,2]
[337474975,1725681042294,-501.90698036,0.00014794,2]
[337474976,1725681042303,-500.84688243,0.00014794,2]
[337474977,1725681042313,-508.54942102,0.00014794,2]
[337474978,1725681042323,-552.05883463,0.00014794,2]
[337474979,1725681042332,-501.74511389,0.00014794,2]
[337474980,1725681042342,-520.49652896,0.00014794,2]
[337474981,1725681042352,-615.44198716,0.00014794,2]
[337474982,1725681042361,-500.0,0.00014794,2]
[337474983,1725681042371,-501.13730747,0.00014794,2]
[337474984,1725681042380,-531.02599411,0.00014794,2]
[337474985,1725681042389,-372.50380428,0.00014794,2]
[337474986,1725681042399,-514.00501081,0.00014794,2]
[337474987,1725681042408,-500.0,0.00014794,2]
[337474988,1725681042417,-501.82927564,0.00014794,2]
[337474989,1725681042427,-501.81659705,0.00014794,2]
[337474990,1725681042436,-500.98075715,0.00014794,2]
[337474991,1725681042445,-589.66,0.00014794,2]
[337474992,1725681042456,-500.0,0.00014794,2]
[337474993,1725681042466,-500.0,0.00014794,2]
[337474994,1725681042476,-501.03568387,0.00014794,2]
[337474995,1725681042485,-500.0,0.00014794,2]
[337474996,1725681042495,-500.0,0.00014794,2]
[337474997,1725681042505,-441.83,0.00014794,2]
[337474998,1725681042514,-502.70827385,0.00014794,2]
[337474999,1725681042524,-500.0,0.00014794,2]
[337475000,1725681042533,-500.0,0.00014794,2]
[337475001,1725681042542,-500.0,0.00014794,2]
[337475002,1725681042551,-500.0,0.00014794,2]
[337475003,1725681042561,-500.0,0.00014794,2]
[337475004,1725681042574,-604.59881013,0.00014794,2]
[337475005,1725681042584,-500.0,0.00014794,2]
[337475006,1725681042594,-503.65192949,0.00014794,2]
[337475007,1725681042603,-498.85171788,0.00014794,2]
[337475009,1725681042615,-501.08080806,0.00014794,2]
[337475011,1725681042625,-500.0,0.00014794,2]
[337475013,1725681042638,-175.14843201,0.00014794,2]
[337475015,1725681042648,-500.0,0.00014794,2]
[337475017,1725681042658,-500.0,0.00014794,2]
[337475019,1725681042668,-500.0,0.00014794,2]
[337475021,1725681042677,-212.37,0.00014794,2]
[337475022,1725681042687,-502.22894892,0.00014794,2]
[337475023,1725681042697,-511.40099297,0.00014794,2]
[337475024,1725681042707,-500.0,0.00014794,2]
[337475025,1725681042717,-500.0,0.00014794,2]
[337475026,1725681042726,-500.0,0.00014794,2]
[337475027,1725681042736,-497.48,0.00014794,2]
[337475028,1725681042746,-500.0,0.00014794,2]
[337475029,1725681042757,-160.42175279,0.00014794,2]
[337475030,1725681042767,-502.45603962,0.00014794,2]
[337475031,1725681042776,-500.0,0.00014794,2]
[337475032,1725681042785,-500.0,0.00014794,2]
[337475033,1725681042795,-500.0,0.00014794,2]
[337475034,1725681042805,-336.67,0.00014794,2]
[337475035,1725681042814,-500.0,0.00014794,2]
[337475036,1725681042824,-500.0,0.00014794,2]
[337475037,1725681042834,-292.83,0.00014794,2]
[337475038,1725681042843,-504.15810977,0.00014794,2]
[337475039,1725681042853,-853.82,0.00014794,2]
[337475040,1725681042863,-853.82,0.00014794,2]
[337475041,1725681042872,-853.82,0.00014794,2]
[337475042,1725681042882,-853.82,0.00014794,2]
[337475043,1725681042891,-853.82,0.00014794,2]
[337475044,1725681042901,-500.0,0.00014794,2]
[337475045,1725681042910,-500.0,0.00014794,2]
[337475046,1725681042920,-500.0,0.00014794,2]
[337475047,1725681042929,-500.0,0.00014794,2]
[337475048,1725681042939,-500.0,0.00014794,2]
[337475049,1725681042948,-500.0,0.00014794,2]
[337475050,1725681042960,-279.94,0.00014794,2]
[337475051,1725681042969,-500.0,0.00014794,2]
[337475052,1725681042979,-500.0,0.00014794,2]
[337475053,1725681042988,-500.0,0.00014794,2]
[337475054,1725681042998,-500.0,0.00014794,2]
[337475055,1725681043007,-500.0,0.00014794,2]
[337475056,1725681043017,-492.0,0.00014794,2]
[337475057,1725681043027,-500.0,0.00014794,2]
[337475058,1725681043037,-500.0,0.00014794,2]
[337475059,1725681043046,-641.56,0.00014794,2]
[337475060,1725681043056,-621.35,0.00014794,2]
[337475061,1725681043065,-621.35,0.00014794,2]
[337475062,1725681043075,-621.35,0.00014794,2]
[337475063,1725681043085,-621.35,0.00014794,2]
[337475064,1725681043094,-500.0,0.00014794,2]
[337475065,1725681043104,-500.0,0.00014794,2]
[337475066,1725681043113,-500.0,0.00014794,2]
[337475067,1725681043123,-500.0,0.00014794,2]
[337475068,1725681043132,-500.0,0.00014794,2]
[337475069,1725681043142,-500.0,0.00014794,2]
[337475070,1725681043151,-500.0,0.00014794,2]
[337475071,1725681043160,-500.0,0.00014794,2]
[337475072,1725681043172,-500.0,0.00014794,2]
[337475073,1725681043182,-500.0,0.00014794,2]
[337475074,1725681043191,-500.0,0.00014794,2]
[337475075,1725681043200,-500.0,0.00014794,2]
[337475076,1725681043210,-500.0,0.00014794,2]
[337475077,1725681043220,-500.0,0.00014794,2]
[337475078,1725681043230,-500.0,0.00014794,2]
[337475079,1725681043239,-500.0,0.00014794,2]
[337475080,1725681043249,-500.0,0.00014794,2]
[337475081,1725681043258,-500.0,0.00014794,2]
[337475082,1725681043268,-500.0,0.00014794,2]
[337475083,1725681043277,-500.0,0.00014794,2]
[337475084,1725681043286,-500.0,0.00014794,2]
[337475085,1725681043296,-500.0,0.00014794,2]
[337475086,1725681043305,-500.0,0.00014794,2]
[337475087,1725681043315,-500.0,0.00014794,2]
[337475088,1725681043324,-500.0,0.00014794,2]
[337475089,1725681043333,-500.0,0.00014794,2]
[337475090,1725681043343,-500.0,0.00014794,2]
[337475091,1725681043353,-500.0,0.00014794,2]
[337475092,1725681043362,-500.0,0.00014794,2]
[337475093,1725681043372,-484.308064,0.00014794,2]
[337475094,1725681043381,-500.0,0.00014794,2]
[337475095,1725681043391,-500.0,0.00014794,2]
[337475096,1725681043400,-500.0,0.00014794,2]
[337475097,1725681043409,-500.0,0.00014794,2]
[337475098,1725681043419,-500.0,0.00014794,2]
[337475099,1725681043429,-500.0,0.00014794,2]
[337475100,1725681043438,-500.0,0.00014794,2]
[337475101,1725681043448,-500.0,0.00014794,2]
[337475102,1725681043458,-500.0,0.00014794,2]
[337475103,1725681043467,-500.0,0.00014794,2]
[337475104,1725681043477,-500.0,0.00014794,2]
[337475105,1725681043486,-500.0,0.00014794,2]
[337475106,1725681043496,-374.09379146,0.00014794,2]
[337475107,1725681043505,-500.0,0.00014794,2]
[337475108,1725681043515,-500.0,0.00014794,2]
[337475109,1725681043524,-500.0,0.00014794,2]
[337475110,1725681043535,-500.0,0.00014794,2]
[337475111,1725681043544,-500.0,0.00014794,2]
[337475112,1725681043554,-500.0,0.00014794,2]
[337475113,1725681043564,-500.0,0.00014794,2]
[337475114,1725681043579,-523.11009827,0.00014794,2]
[337475115,1725681043589,-500.0,0.00014794,2]
[337475116,1725681043598,-466.43216321,0.00014794,2]
[337475117,1725681043607,-500.0,0.00014794,2]
[337475118,1725681043617,-500.0,0.00014794,2]
[337475119,1725681043627,-500.0,0.00014794,2]
[337475120,1725681043637,-500.0,0.00014794,2]
[337475121,1725681043648,-500.0,0.00014794,2]
[337475122,1725681043657,-500.0,0.00014794,2]
[337475123,1725681043667,-500.0,0.00014794,2]
[337475124,1725681043676,-500.0,0.00014794,2]
[337475125,1725681043686,-500.0,0.00014794,2]
[337475126,1725681043695,-500.0,0.00014794,2]
[337475127,1725681043706,-500.0,0.00014794,2]
[337475128,1725681043715,-500.0,0.00014794,2]
[337475129,1725681043725,-500.0,0.00014794,2]
[337475130,1725681043734,-500.0,0.00014794,2]
[337475131,1725681043744,-500.0,0.00014794,2]
[337475132,1725681043753,-500.0,0.00014794,2]
[337475133,1725681043763,-500.0,0.00014794,2]
[337475134,1725681043772,-500.0,0.00014794,2]
[337475135,1725681043781,-500.0,0.00014794,2]
[337475136,1725681043791,-500.0,0.00014794,2]
[337475137,1725681043800,-500.0,0.00014794,2]
[337475138,1725681043809,-500.0,0.00014794,2]
[337475139,1725681043819,-500.0,0.00014794,2]
[337475140,1725681043829,-528.24049146,0.00014794,2]
[337475141,1725681043838,-500.0,0.00014794,2]
[337475142,1725681043847,-210.26291977,0.00014794,2]
[337475143,1725681043856,-500.0,0.00014794,2]
[337475144,1725681043866,-500.0,0.00014794,2]
[337475145,1725681043876,-500.0,0.00014794,2]
[337475146,1725681043885,-500.0,0.00014794,2]
[337475147,1725681043894,-500.0,0.00014794,2]
[337475148,1725681043903,-500.0,0.00014794,2]
[337475149,1725681043912,-500.0,0.00014794,2]
[337475150,1725681043921,-500.0,0.00014794,2]
[337475151,1725681043931,-430.61,0.00014794,2]
[337475152,1725681043940,-500.0,0.00014794,2]
[337475153,1725681043949,-190.51,0.00014794,2]
[337475154,1725681043959,-500.0,0.00014794,2]
[337475155,1725681043968,-500.0,0.00014794,2]
[337475156,1725681043977,-500.0,0.00014794,2]
[337475157,1725681043987,-500.0,0.00014794,2]
[337475158,1725681043996,-500.0,0.00014794,2]
[337475159,1725681044006,-500.0,0.00014794,2]
[337475160,1725681044015,-500.0,0.00014794,2]
[337475161,1725681044024,-500.0,0.00014794,2]
[337475162,1725681044034,-500.0,0.00014794,2]
[337475163,1725681044043,-500.0,0.00014794,2]
[337475164,1725681044052,-500.0,0.00014794,2]
[337475165,1725681044061,-232.17784071,0.00014794,2]
[337475166,1725681044070,-500.0,0.00014794,2]
[337475167,1725681044079,-500.0,0.00014794,2]
[337475168,1725681044089,-500.0,0.00014794,2]
[337475169,1725681044098,-500.0,0.00014794,2]
[337475170,1725681044107,-500.0,0.00014794,2]
[337475171,1725681044116,-500.0,0.00014794,2]
[337475172,1725681044125,-500.0,0.00014794,2]
[337475173,1725681044135,-500.0,0.00014794,2]
[337475174,1725681044144,-500.0,0.00014794,2]
[337475175,1725681044153,-500.0,0.00014794,2]
[337475176,1725681044163,-416.20915618,0.00014794,2]
[337475177,1725681044172,-500.0,0.00014794,2]
[337475178,1725681044181,-500.0,0.00014794,2]
[337475179,1725681044191,-500.0,0.00014794,2]
[337475180,1725681044200,-500.0,0.00014794,2]
[337475181,1725681044211,-500.0,0.00014794,2]
[337475182,1725681044220,-500.0,0.00014794,2]
[337475183,1725681044230,-500.0,0.00014794,2]
[337475184,1725681044239,-500.0,0.00014794,2]
[337475185,1725681044248,-500.0,0.00014794,2]
[337475186,1725681044258,-500.0,0.00014794,2]
[337475187,1725681044269,-500.0,0.00014794,2]
[337475188,1725681044279,-593.81190554,0.00014794,2]
[337475189,1725681044288,-500.0,0.00014794,2]
[337475190,1725681044297,-500.0,0.00014794,2]
[337475191,1725681044306,-500.0,0.00014794,2]
[337475192,1725681044316,-500.0,0.00014794,2]
[337475193,1725681044325,-500.0,0.00014794,2]
[337475194,1725681044334,-550.12761123,0.00014794,2]
[337475195,1725681044344,-903.94,0.00014794,2]
[337475196,1725681044353,-903.94,0.00014794,2]
[337475197,1725681044362,-903.94,0.00014794,2]
[337475198,1725681044371,-903.94,0.00014794,2]
[337475199,1725681044381,-903.94,0.00014794,2]
[337475200,1725681044390,-500.0,0.00014794,2]
[337475201,1725681044399,-500.0,0.00014794,2]
[337475202,1725681044409,-500.0,0.00014794,2]
[337475203,1725681044418,-500.0,0.00014794,2]
[337475204,1725681044428,-500.0,0.00014794,2]
[337475205,1725681044437,-500.0,0.00014794,2]
[337475206,1725681044447,-500.0,0.00014794,2]
[337475207,1725681044457,-500.0,0.00014794,2]
[337475208,1725681044466,-500.0,0.00014794,2]
[337475209,1725681044476,-500.0,0.00014794,2]
[337475210,1725681044485,-500.0,0.00014794,2]
[337475211,1725681044494,-500.0,0.00014794,2]
[337475212,1725681044503,-254.50389732,0.00014794,2]
[337475213,1725681044512,-1246.95,0.00014794,2]
[337475214,1725681044523,-1246.95,0.00014794,2]
[337475215,1725681044534,-1246.95,0.00014794,2]
[337475216,1725681044544,-1246.95,0.00014794,2]
[337475217,1725681044554,-1246.95,0.00014794,2]
[337475218,1725681044566,-500.0,0.00014794,2]
[337475219,1725681044577,-500.0,0.00014794,2]
[337475220,1725681044587,-500.0,0.00014794,2]
[337475221,1725681044596,-500.0,0.00014794,2]
[337475222,1725681044606,-500.0,0.00014794,2]
[337475223,1725681044617,-500.0,0.00014794,2]
[337475224,1725681044626,-500.0,0.00014794,2]
[337475225,1725681044635,-500.0,0.00014794,2]
[337475226,1725681044645,-500.0,0.00014794,2]
[337475227,1725681044656,-250.32744408,0.00014794,2]
[337475228,1725681044665,-633.96,0.00014794,2]
[337475229,1725681044675,-633.96,0.00014794,2]
[337475230,1725681044685,-633.96,0.00014794,2]
[337475231,1725681044694,-1510.6,0.00014794,2]
[337475232,1725681044704,-1510.6,0.00014794,2]
[337475233,1725681044714,-633.96,0.00014794,2]
[337475234,1725681044723,-1510.6,0.00014794,2]
[337475235,1725681044733,-1510.6,0.00014794,2]
[337475236,1725681044743,-1510.6,0.00014794,2]
[337475237,1725681044753,-500.0,0.00014794,2]
[337475238,1725681044763,-500.0,0.00014794,2]
[337475239,1725681044773,-500.0,0.00014794,2]
[337475240,1725681044783,-500.0,0.00014794,2]
[337475241,1725681044793,-579.29767591,0.00014794,2]
[337475242,1725681044802,-510.0,0.00014794,2]
[337475243,1725681044812,-510.0,0.00014794,2]
[337475244,1725681044822,-510.0,0.00014794,2]
[337475245,1725681044834,-510.0,0.00014794,2]
[337475246,1725681044844,-510.0,0.00014794,2]
[337475247,1725681044854,-2893.72,0.00014794,2]
[337475248,1725681044864,-2893.72,0.00014794,2]
[337475249,1725681044874,-2893.72,0.00014794,2]
[337475250,1725681044884,-2893.72,0.00014794,2]
[337475251,1725681044893,-2893.72,0.00014794,2]
[337475252,1725681044902,-500.0,0.00014794,2]
[337475253,1725681044912,-500.0,0.00014794,2]
[337475254,1725681044922,-500.0,0.00014794,2]
[337475255,1725681044931,-500.0,0.00014794,2]
[337475256,1725681044941,-500.0,0.00014794,2]
[337475257,1725681044950,-500.0,0.00014794,2]
[337475258,1725681044961,-500.0,0.00014794,2]
[337475259,1725681044970,-500.0,0.00014794,2]
[337475260,1725681044980,-500.0,0.00014794,2]
[337475261,1725681044989,-500.0,0.00014794,2]
[337475262,1725681044999,-500.0,0.00014794,2]
[337475263,1725681045008,-500.0,0.00014794,2]
[337475264,1725681045018,-500.0,0.00014794,2]
[337475265,1725681045027,-365.9,0.00014794,2]
[337475266,1725681045036,-500.0,0.00014794,2]
[337475267,1725681045046,-500.0,0.00014794,2]
[337475268,1725681045055,-500.0,0.00014794,2]
[337475269,1725681045065,-500.0,0.00014794,2]
[337475270,1725681045074,-500.0,0.00014794,2]
[337475271,1725681045084,-500.0,0.00014794,2]
[337475272,1725681045094,-500.0,0.00014794,2]
[337475273,1725681045104,-500.0,0.00014794,2]
[337475274,1725681045114,-500.0,0.00014794,2]